[Event "Pan-American U20-ch 2023"]
[Site "Volta Redonda"]
[Date "2023.11.06"]
[Round "1.1"]
[White "Montes Orozco, Miguel Angel"]
[Black "Flores Quillas, Diego Saul Rodri"]
[Result "0-1"]
[ECO "B51"]
[WhiteElo "2105"]
[BlackElo "2369"]
[Annotator "RC"]
[PlyCount "86"]
[EventDate "2023.10.31"]
[EventType "swiss"]
[EventCountry "BRA"]
[SourceTitle "playchess.com"]
[Source "ChessBase"]
[SourceQuality "1"]
[TimeControl "5400+30"]

1. e4 {[%emt 0:00:32]} c5 {[%emt 0:00:06]} 2. Nf3 {[%emt 0:00:07]} d6 {[%emt 0:00:04]} 3. Bb5+ {[%emt 0:00:45]} Nd7 {[%emt 0:00:08]} 4. a4 {[%emt 0:02:21]} Ngf6 {[%emt 0:00:57]} 5. Nc3 {[%emt 0:00:55]} a6 {[%emt 0:00:19]} 6. Be2 {[%emt 0:00:21]} b6 {[%emt 0:01:19]} 7. d4 {[%emt 0:02:07]} cxd4 {[%emt 0:00:06]} 8. Qxd4 {[%emt 0:00:10]} e5 {[%emt 0:00:24]} 9. Qe3 {[%emt 0:00:49]} Bb7 {[%emt 0:00:33]} 10. O-O {[%emt 0:01:21]} Qc7 {[%emt 0:02:27]} 11. Rd1 {[%emt 0:09:53]} Be7 {[%emt 0:00:07]} 12. Nd2 {[%emt 0:20:12]} Nc5 {[%emt 0:06:48]} 13. b3 {[%emt 0:17:56]} Ne6 {[%emt 0:04:10]} 14. Bb2 {[%emt 0:00:44]} Nd4 {[%emt 0:00:42]} 15. Rac1 {[%emt 0:01:46]} O-O {[%emt 0:02:25]} 16. Bf1 {[%emt 0:07:26]} Rad8 {[%emt 0:13:32]} 17. Ne2 {[%emt 0:13:19]} Ne6 {[%emt 0:09:00]} 18. c4 {[%emt 0:02:11]} Ng4 {[%emt 0:01:28]} 19. Qg3 {[%emt 0:01:25]} Nh6 {[%emt 0:00:06]} 20. Nc3 {[%emt 0:00:19]} Bg5 {[%emt 0:01:42]} 21. Nd5 {[%emt 0:00:32]} Qb8 {[%emt 0:00:12]} 22. h4 {[%emt 0:10:50]} Bf4 {[%emt 0:00:10]} 23. Qd3 {[%emt 0:04:42]} Nc5 {[%emt 0:11:02]} 24. Qc2 {[%emt 0:00:07]} Bxd5 {[%emt 0:00:03]} 25. exd5 {[%emt 0:01:28]} a5 {[%emt 0:00:21]} 26. g3 {[%emt 0:00:38]} Bxd2 {[%emt 0:00:26]} 27. Rxd2 {[%emt 0:00:01]} f5 {[%emt 0:00:02]} 28. Re1 {[%emt 0:00:50]} f4 {[%emt 0:00:52]} 29. Ba3 {[%emt 0:00:39]} Nf5 {[%emt 0:00:44]} 30. Bxc5 {[%emt 0:00:33]} bxc5 {[%emt 0:00:05]} 31. Bh3 {[%emt 0:00:16]} Nd4 {[%emt 0:00:12]} 32. Rxd4 {[%emt 0:00:28]} cxd4 {[%emt 0:00:29]} 33. Be6+ {[%emt 0:00:45]} Kh8 {[%emt 0:00:05]} 34. g4 {[%emt 0:00:14]} Qb4 {[%emt 0:00:57]} 35. Rb1 {[%emt 0:00:14]} f3 {[%emt 0:00:06]} 36. Kh2 {[%emt 0:00:18]} g6 {[%emt 0:02:39]} 37. Kg3 {[%emt 0:00:05]} Rb8 {[%emt 0:00:36]} 38. Bd7 {[%emt 0:00:22]} Rf4 {[%emt 0:00:56]} 39. Bb5 {[%emt 0:00:50]} Rbf8 {[%emt 0:03:27]} 40. Rd1 {[%emt 0:00:07]} Kg7 {[%emt 0:01:30]} 41. Bd7 {[%emt 0:00:58]} Rb8 {[%emt 0:00:57]} 42. Bb5 {[%emt 0:00:06]} Qc5 {[%emt 0:00:04]} 43. Qd2 {[%emt 0:00:03]} Qc8 {[%emt 0:00:14]} 0-1

[Event "Pan-American U20-ch 2023"]
[Site "Volta Redonda"]
[Date "2023.11.06"]
[Round "1.2"]
[White "Sathish, Pranav"]
[Black "Seccafim, Caic dos Santos"]
[Result "1-0"]
[ECO "B06"]
[WhiteElo "2415"]
[BlackElo "2058"]
[Annotator "RC"]
[PlyCount "132"]
[EventDate "2023.10.31"]
[EventType "swiss"]
[EventCountry "BRA"]
[SourceTitle "playchess.com"]
[Source "ChessBase"]
[SourceQuality "1"]
[TimeControl "5400+30"]

1. Nf3 {[%emt 0:00:02]} g6 {[%emt 0:00:08]} 2. e4 {[%emt 0:00:04]} Bg7 {[%emt 0:00:06]} 3. d4 {[%emt 0:00:02]} d6 {[%emt 0:00:14]} 4. Bc4 {[%emt 0:00:04]} Nf6 {[%emt 0:00:12]} 5. Qe2 {[%emt 0:00:04]} c6 {[%emt 0:10:09]} 6. e5 {[%emt 0:06:23]} Nd5 {[%emt 0:00:54]} 7. h3 {[%emt 0:06:11]} Nc7 {[%emt 0:06:21]} 8. exd6 {[%emt 0:02:11]} Qxd6 {[%emt 0:00:30]} 9. O-O {[%emt 0:00:05]} Be6 {[%emt 0:00:47]} 10. Nbd2 {[%emt 0:02:50]} Bxc4 {[%emt 0:08:56]} 11. Nxc4 {[%emt 0:00:08]} Qe6 {[%emt 0:00:09]} 12. Re1 {[%emt 0:00:56]} Qxe2 {[%emt 0:00:10]} 13. Rxe2 {[%emt 1:18:00]} Ne6 {[%emt 0:00:48]} 14. c3 {[%emt 0:00:00]} Nd7 {[%emt 0:04:19]} 15. Ng5 {[%emt 0:00:00]} Nxg5 {[%emt 0:01:20]} 16. Bxg5 {[%emt 0:00:00]} f6 {[%emt 0:00:09]} 17. Rae1 {[%emt 0:00:00]} e5 {[%emt 0:20:33]} 18. Bf4 {[%emt 0:00:00]} O-O {[%emt 0:08:46]} 19. dxe5 {[%emt 0:00:00]} fxe5 {[%emt 0:09:48]} 20. Nxe5 {[%emt 0:00:00]} Nxe5 {[%emt 0:00:43]} 21. Bxe5 {[%emt 0:00:00]} Bxe5 {[%emt 0:00:15]} 22. Rxe5 {[%emt 0:00:00]} Kg7 {[%emt 0:00:20]} 23. Rd1 {[%emt 0:00:00]} Rf7 {[%emt 0:00:14]} 24. f3 {[%emt 0:00:00]} Rc8 {[%emt 0:01:32]} 25. Kf2 {[%emt 0:00:00]} Rcc7 {[%emt 0:00:05]} 26. Rd6 {[%emt 0:00:00]} Rfd7 {[%emt 0:03:21]} 27. Ree6 {[%emt 0:00:00]} Kf7 {[%emt 0:00:18]} 28. Rf6+ {[%emt 0:00:00]} Kg7 {[%emt 0:00:04]} 29. h4 {[%emt 0:00:00]} Re7 {[%emt 0:01:16]} 30. Rf4 {[%emt 0:00:00]} Re5 {[%emt 0:01:35]} 31. Rfd4 {[%emt 0:00:00]} Rce7 {[%emt 0:02:09]} 32. Rd7 {[%emt 0:00:00]} Re2+ {[%emt 0:00:07]} 33. Kg3 {[%emt 0:00:00]} Kf6 {[%emt 0:01:41]} 34. Rf4+ {[%emt 0:00:00]} Kg7 {[%emt 0:00:06]} 35. Rxe7+ {[%emt 0:00:00]} Rxe7 {[%emt 0:00:03]} 36. Re4 {[%emt 0:00:00]} Rd7 {[%emt 0:00:06]} 37. Rd4 {[%emt 0:00:00]} Re7 {[%emt 0:00:05]} 38. Kf4 {[%emt 0:00:00]} Re2 {[%emt 0:03:51]} 39. Rd7+ {[%emt 0:00:00]} Kf6 {[%emt 0:00:06]} 40. Rxb7 {[%emt 0:00:00]} Rxg2 {[%emt 0:00:06]} 41. Rxh7 {[%emt 0:00:00]} Rxb2 {[%emt 0:00:26]} 42. Rxa7 {[%emt 0:00:00]} Rc2 {[%emt 0:01:44]} 43. Ra3 {[%emt 0:00:00]} c5 {[%emt 0:01:27]} 44. Ke4 {[%emt 0:00:00]} Rh2 {[%emt 0:00:23]} 45. Ra6+ {[%emt 0:00:00]} Kf7 {[%emt 0:00:20]} 46. Kd5 {[%emt 0:00:00]} Rxh4 {[%emt 0:00:23]} 47. c4 {[%emt 0:00:00]} Rh5+ {[%emt 0:00:36]} 48. Kd6 {[%emt 0:00:00]} Kf6 {[%emt 0:03:41]} 49. Ra3 {[%emt 0:00:00]} g5 {[%emt 0:01:42]} 50. Rb3 {[%emt 0:00:00]} Rh2 {[%emt 0:02:04]} 51. a3 {[%emt 0:00:00]} Rh3 {[%emt 0:00:21]} 52. Kxc5 {[%emt 0:00:00]} Ke5 {[%emt 0:00:06]} 53. Kb4 {[%emt 0:00:00]} Kd4 {[%emt 0:00:49]} 54. a4 {[%emt 0:00:00]} Rh8 {[%emt 0:00:14]} 55. a5 {[%emt 0:00:00]} Rb8+ {[%emt 0:01:03]} 56. Ka4 {[%emt 0:00:00]} Ra8 {[%emt 0:01:15]} 57. Rb5 {[%emt 0:00:00]} Kxc4 {[%emt 0:02:41]} 58. Rxg5 {[%emt 0:00:00]} Ra6 {[%emt 0:00:50]} 59. Rg4+ {[%emt 0:00:00]} Kc5 {[%emt 0:00:27]} 60. Rg1 {[%emt 0:00:00]} Rf6 {[%emt 0:00:46]} 61. Rc1+ {[%emt 0:00:00]} Kd4 {[%emt 0:02:08]} 62. Kb5 {[%emt 0:00:00]} Rxf3 {[%emt 0:00:07]} 63. a6 {[%emt 0:00:00]} Rb3+ {[%emt 0:01:37]} 64. Ka4 {[%emt 0:00:00]} Rb2 {[%emt 0:00:19]} 65. Ra1 {[%emt 0:00:00]} Kc4 {[%emt 0:04:37]} 66. a7 {[%emt 0:00:00]} Kd5 {[%emt 0:01:02]} 1-0

[Event "Pan-American U20-ch 2023"]
[Site "Volta Redonda"]
[Date "2023.11.06"]
[Round "1.3"]
[White "Casalaspro, Mathias Andre"]
[Black "Vazquez, Facundo"]
[Result "1/2-1/2"]
[ECO "D00"]
[WhiteElo "2060"]
[BlackElo "2407"]
[Annotator "RC"]
[PlyCount "105"]
[EventDate "2023.10.31"]
[EventType "swiss"]
[EventCountry "BRA"]
[SourceTitle "playchess.com"]
[Source "ChessBase"]
[SourceQuality "1"]
[TimeControl "5400+30"]

1. d4 {[%emt 0:00:29]} Nf6 {[%emt 0:00:08]} 2. Nc3 {[%emt 0:00:18]} d5 {[%emt 0:03:34]} 3. Bf4 {[%emt 0:00:32]} e6 {[%emt 0:00:09]} 4. Nb5 {[%emt 0:01:13]} Bb4+ {[%emt 0:00:57]} 5. c3 {[%emt 0:00:47]} Ba5 {[%emt 0:00:10]} 6. e3 {[%emt 0:03:45]} Nbd7 {[%emt 0:07:24]} 7. Nf3 {[%emt 0:10:04]} a6 {[%emt 0:01:08]} 8. Na3 {[%emt 0:00:08]} c6 {[%emt 0:04:36]} 9. Bd3 {[%emt 0:03:13]} Bc7 {[%emt 0:00:40]} 10. O-O {[%emt 0:01:38]} O-O {[%emt 0:01:53]} 11. Qc2 {[%emt 0:07:46]} c5 {[%emt 0:10:29]} 12. Bxc7 {[%emt 0:09:18]} Qxc7 {[%emt 0:00:04]} 13. c4 {[%emt 0:01:56]} cxd4 {[%emt 0:02:21]} 14. Nxd4 {[%emt 0:02:59]} dxc4 {[%emt 0:20:08]} 15. Nxc4 {[%emt 0:05:51]} b5 {[%emt 0:00:33]} 16. Nd2 {[%emt 0:00:24]} Qxc2 {[%emt 0:04:25]} 17. Nxc2 {[%emt 0:00:34]} Nc5 {[%emt 0:01:31]} 18. Be2 {[%emt 0:00:49]} Rd8 {[%emt 0:01:46]} 19. Bf3 {[%emt 0:04:46]} Ra7 {[%emt 0:06:02]} 20. Rfd1 {[%emt 0:03:35]} Rad7 {[%emt 0:02:41]} 21. Nd4 {[%emt 0:01:56]} e5 {[%emt 0:07:20]} 22. Nc6 {[%emt 0:02:29]} Re8 {[%emt 0:00:16]} 23. Nb3 {[%emt 0:02:49]} Na4 {[%emt 0:02:35]} 24. Rdc1 {[%emt 0:08:52]} Bb7 {[%emt 0:04:44]} 25. Nba5 {[%emt 0:01:19]} e4 {[%emt 0:00:29]} 26. b3 {[%emt 0:01:44]} Bxc6 {[%emt 0:02:02]} 27. Nxc6 {[%emt 0:00:42]} Nb2 {[%emt 0:00:36]} 28. Be2 {[%emt 0:01:22]} Rd2 {[%emt 0:02:47]} 29. Nd4 {[%emt 0:02:44]} Nd5 {[%emt 0:01:53]} 30. Kf1 {[%emt 0:02:23]} Nf4 {[%emt 0:05:09]} 31. Ke1 {[%emt 0:02:42]} Rxe2+ {[%emt 0:01:29]} 32. Nxe2 {[%emt 0:00:05]} Nfd3+ {[%emt 0:00:29]} 33. Kd2 {[%emt 0:00:16]} Nxc1 {[%emt 0:00:13]} 34. Rxc1 {[%emt 0:00:04]} Nd3 {[%emt 0:00:17]} 35. Rc6 {[%emt 0:01:39]} Ra8 {[%emt 0:00:11]} 36. Rd6 {[%emt 0:02:14]} Nxf2 {[%emt 0:00:44]} 37. Ng3 {[%emt 0:00:57]} Ng4 {[%emt 0:01:20]} 38. Nxe4 {[%emt 0:00:51]} Nxh2 {[%emt 0:00:02]} 39. Nc5 {[%emt 0:00:45]} a5 {[%emt 0:00:06]} 40. Nb7 {[%emt 0:04:41]} Nf1+ {[%emt 0:01:26]} 41. Kd3 {[%emt 0:00:16]} Re8 {[%emt 0:00:26]} 42. Rd8 {[%emt 0:01:19]} Rxd8+ {[%emt 0:00:21]} 43. Nxd8 {[%emt 0:00:07]} Kf8 {[%emt 0:00:42]} 44. Nc6 {[%emt 0:00:17]} Ke8 {[%emt 0:00:40]} 45. Nxa5 {[%emt 0:00:14]} h5 {[%emt 0:00:27]} 46. Nc6 {[%emt 0:02:45]} g5 {[%emt 0:00:39]} 47. Nd4 {[%emt 0:00:45]} g4 {[%emt 0:01:06]} 48. Nf5 {[%emt 0:00:41]} Kd7 {[%emt 0:00:33]} 49. Ke2 {[%emt 0:00:31]} Nh2 {[%emt 0:00:01]} 50. Kf2 {[%emt 0:00:35]} Kc6 {[%emt 0:00:22]} 51. a4 {[%emt 0:02:12]} b4 {[%emt 0:00:43]} 52. e4 {[%emt 0:01:34]} Kc5 {[%emt 0:00:33]} 53. Ke2 {[%emt 0:00:32]} 1/2-1/2

[Event "Pan-American U20-ch 2023"]
[Site "Volta Redonda"]
[Date "2023.11.06"]
[Round "1.4"]
[White "Oro, Faustino"]
[Black "Munoz Ramos, Christopher"]
[Result "1-0"]
[ECO "B99"]
[WhiteElo "2356"]
[BlackElo "2111"]
[Annotator "RC"]
[PlyCount "77"]
[EventDate "2023.10.31"]
[EventType "swiss"]
[EventCountry "BRA"]
[SourceTitle "playchess.com"]
[Source "ChessBase"]
[SourceQuality "1"]
[TimeControl "5400+30"]

1. e4 {[%emt 0:00:03]} c5 {[%emt 0:12:04]} 2. Nf3 {[%emt 0:00:11]} d6 {[%emt 0:00:11]} 3. d4 {[%emt 0:00:06]} cxd4 {[%emt 0:00:17]} 4. Nxd4 {[%emt 0:00:08]} Nf6 {[%emt 1:19:58]} 5. Nc3 {[%emt 0:00:06]} a6 {[%emt 0:00:00]} 6. Bg5 {[%emt 0:00:11]} e6 {[%emt 0:00:00]} 7. f4 {[%emt 0:00:06]} Be7 {[%emt 0:00:00]} 8. Qf3 {[%emt 0:00:13]} Qc7 {[%emt 0:00:00]} 9. O-O-O {[%emt 1:33:56]} Nbd7 {[%emt 0:00:00]} 10. g4 {[%emt 0:00:00]} b5 {[%emt 0:00:00]} 11. Bxf6 {[%emt 0:00:00]} Nxf6 {[%emt 0:00:00]} 12. g5 {[%emt 0:00:00]} Nd7 {[%emt 0:00:00]} 13. f5 {[%emt 0:00:00]} O-O {[%emt 0:00:00]} 14. Rg1 {[%emt 0:00:00]} Ne5 {[%emt 0:00:00]} 15. Qg3 {[%emt 0:00:00]} b4 {[%emt 0:00:00]} 16. Nce2 {[%emt 0:00:00]} Bd7 {[%emt 0:00:00]} 17. Nf4 {[%emt 0:00:00]} Nc6 {[%emt 0:00:00]} 18. fxe6 {[%emt 0:00:00]} Nxd4 {[%emt 0:00:00]} 19. exf7+ {[%emt 0:00:00]} Rxf7 {[%emt 0:00:00]} 20. Rxd4 {[%emt 0:00:00]} Qc5 {[%emt 0:00:00]} 21. Rd5 {[%emt 0:00:00]} Qc6 {[%emt 0:00:00]} 22. g6 {[%emt 0:00:00]} hxg6 {[%emt 0:00:00]} 23. Nxg6 {[%emt 0:00:00]} Rc8 {[%emt 0:00:00]} 24. Bd3 {[%emt 0:00:00]} Bf6 {[%emt 0:00:00]} 25. Rh5 {[%emt 0:00:00]} Bxb2+ {[%emt 0:00:00]} 26. Kb1 {[%emt 0:00:00]} Rff8 {[%emt 0:00:00]} 27. Ne7+ {[%emt 0:00:00]} Kf7 {[%emt 0:00:00]} 28. Nxc6 {[%emt 0:00:00]} Rxc6 {[%emt 0:00:20]} 29. Kxb2 {[%emt 0:00:00]} Rg8 {[%emt 0:00:13]} 30. Rh7 {[%emt 0:00:00]} Be6 {[%emt 0:00:08]} 31. Rxg7+ {[%emt 0:00:00]} Rxg7 {[%emt 0:00:07]} 32. Qxg7+ {[%emt 0:00:00]} Ke8 {[%emt 0:00:09]} 33. Qf6 {[%emt 0:00:00]} Bf7 {[%emt 0:00:06]} 34. Rg7 {[%emt 0:00:00]} Rc7 {[%emt 0:00:05]} 35. Qxd6 {[%emt 0:00:00]} Rd7 {[%emt 0:00:05]} 36. Qb8+ {[%emt 0:00:00]} Ke7 {[%emt 0:00:04]} 37. Bc4 {[%emt 0:00:00]} Rd5 {[%emt 0:00:09]} 38. Bxd5 {[%emt 0:00:00]} Kd7 {[%emt 0:00:04]} 39. Rxf7# {[%emt 0:00:00]} 1-0

[Event "Pan-American U20-ch 2023"]
[Site "Volta Redonda"]
[Date "2023.11.06"]
[Round "1.5"]
[White "Varillas Jimenez, Ivan"]
[Black "Schnaider, Ilan"]
[Result "1-0"]
[ECO "B99"]
[WhiteElo "1985"]
[BlackElo "2292"]
[Annotator "RC"]
[PlyCount "123"]
[EventDate "2023.10.31"]
[EventType "swiss"]
[EventCountry "BRA"]
[SourceTitle "playchess.com"]
[Source "ChessBase"]
[SourceQuality "1"]
[TimeControl "5400+30"]

1. e4 {[%emt 0:00:22]} c5 {[%emt 0:00:10]} 2. Nf3 {[%emt 0:00:11]} d6 {[%emt 0:00:05]} 3. d4 {[%emt 0:00:16]} cxd4 {[%emt 0:00:05]} 4. Nxd4 {[%emt 0:00:04]} Nf6 {[%emt 0:00:05]} 5. Nc3 {[%emt 0:00:42]} a6 {[%emt 0:00:04]} 6. Bg5 {[%emt 0:00:47]} e6 {[%emt 0:00:26]} 7. f4 {[%emt 0:00:59]} Be7 {[%emt 0:00:11]} 8. Qf3 {[%emt 0:00:32]} Qc7 {[%emt 0:00:35]} 9. O-O-O {[%emt 0:00:11]} Nbd7 {[%emt 0:00:06]} 10. g4 {[%emt 0:01:39]} h6 {[%emt 0:02:46]} 11. Bxf6 {[%emt 0:00:31]} Bxf6 {[%emt 0:00:17]} 12. h4 {[%emt 0:01:02]} Nb6 {[%emt 0:00:37]} 13. g5 {[%emt 0:00:57]} Bxd4 {[%emt 0:00:28]} 14. Rxd4 {[%emt 0:00:02]} Qc5 {[%emt 0:00:22]} 15. Qf2 {[%emt 0:03:20]} hxg5 {[%emt 0:31:03]} 16. e5 {[%emt 0:01:46]} gxf4 {[%emt 0:03:02]} 17. Bd3 {[%emt 0:01:53]} d5 {[%emt 0:30:40]} 18. Ne4 {[%emt 0:13:03]} dxe4 {[%emt 0:00:52]} 19. Rd8+ {[%emt 0:00:17]} Kxd8 {[%emt 0:00:04]} 20. Qxc5 {[%emt 0:00:05]} Nd7 {[%emt 0:00:05]} 21. Qg1 {[%emt 0:01:01]} exd3 {[%emt 0:00:15]} 22. Qxg7 {[%emt 0:00:21]} Rf8 {[%emt 0:03:59]} 23. Rd1 {[%emt 0:09:27]} Kc7 {[%emt 0:25:43]} 24. Rxd3 {[%emt 0:03:08]} b6 {[%emt 0:00:00]} 25. Rc3+ {[%emt 0:41:36]} Kb8 {[%emt 0:00:00]} 26. Rd3 {[%emt 0:07:15]} Kc7 {[%emt 0:00:00]} 27. Qg5 {[%emt 0:05:28]} Re8 {[%emt 0:01:08]} 28. Qxf4 {[%emt 0:02:31]} Bb7 {[%emt 0:00:34]} 29. Qc4+ {[%emt 0:00:51]} Bc6 {[%emt 0:00:34]} 30. Rc3 {[%emt 0:01:22]} Nxe5 {[%emt 0:00:35]} 31. Qf4 {[%emt 0:01:06]} f6 {[%emt 0:00:20]} 32. Qxf6 {[%emt 0:00:15]} Nd7 {[%emt 0:00:01]} 33. Qf4+ {[%emt 0:00:29]} Kb7 {[%emt 0:01:04]} 34. Qd6 {[%emt 0:01:36]} Nc5 {[%emt 0:00:21]} 35. Rg3 {[%emt 0:02:08]} Rad8 {[%emt 0:00:39]} 36. Rg7+ {[%emt 0:00:15]} Rd7 {[%emt 0:00:20]} 37. Rxd7+ {[%emt 0:00:42]} Nxd7 {[%emt 0:00:02]} 38. h5 {[%emt 0:00:13]} Rh8 {[%emt 0:00:22]} 39. Qh2 {[%emt 0:01:00]} Rh6 {[%emt 0:00:33]} 40. Qh4 {[%emt 0:00:28]} a5 {[%emt 0:01:20]} 41. Qg5 {[%emt 0:00:21]} Rf6 {[%emt 0:00:33]} 42. b3 {[%emt 0:00:21]} Rf7 {[%emt 0:00:28]} 43. Qg6 {[%emt 0:00:45]} Rf1+ {[%emt 0:00:30]} 44. Kb2 {[%emt 0:00:06]} Rh1 {[%emt 0:00:27]} 45. h6 {[%emt 0:00:27]} Ka6 {[%emt 0:00:36]} 46. Qxe6 {[%emt 0:00:59]} Kb7 {[%emt 0:00:24]} 47. Qg6 {[%emt 0:00:23]} Rh4 {[%emt 0:00:37]} 48. Qg7 {[%emt 0:00:28]} Ka6 {[%emt 0:00:29]} 49. h7 {[%emt 0:00:16]} Rxh7 {[%emt 0:00:28]} 50. Qxh7 {[%emt 0:00:05]} Nc5 {[%emt 0:00:06]} 51. Qc7 {[%emt 0:00:39]} Bb7 {[%emt 0:00:10]} 52. a3 {[%emt 0:00:12]} Ka7 {[%emt 0:00:21]} 53. b4 {[%emt 0:00:57]} axb4 {[%emt 0:00:57]} 54. axb4 {[%emt 0:00:01]} Na6 {[%emt 0:00:18]} 55. Qd6 {[%emt 0:00:14]} b5 {[%emt 0:00:35]} 56. c3 {[%emt 0:00:49]} Nb8 {[%emt 0:01:02]} 57. Qc5+ {[%emt 0:00:24]} Ka6 {[%emt 0:00:08]} 58. c4 {[%emt 0:01:16]} Bc6 {[%emt 0:00:27]} 59. cxb5+ {[%emt 0:00:35]} Bxb5 {[%emt 0:00:03]} 60. Qc7 {[%emt 0:00:20]} Nc6 {[%emt 0:00:18]} 61. Kc3 {[%emt 0:00:07]} Ba4 {[%emt 0:00:46]} 62. Kc4 {[%emt 0:00:17]} 1-0

[Event "Pan-American U20-ch 2023"]
[Site "Volta Redonda"]
[Date "2023.11.06"]
[Round "1.6"]
[White "Filgueiras, Nathan Felipe"]
[Black "Nascimento, Luiz Eduardo da Trin"]
[Result "1-0"]
[ECO "B90"]
[WhiteElo "2331"]
[BlackElo "1877"]
[Annotator "RC"]
[PlyCount "51"]
[EventDate "2023.10.31"]
[EventType "swiss"]
[EventCountry "BRA"]
[SourceTitle "playchess.com"]
[Source "ChessBase"]
[SourceQuality "1"]
[TimeControl "5400+30"]

1. e4 {[%emt 0:00:06]} c5 {[%emt 0:00:12]} 2. Nf3 {[%emt 0:00:05]} d6 {[%emt 0:00:09]} 3. d4 {[%emt 0:00:06]} cxd4 {[%emt 0:00:18]} 4. Nxd4 {[%emt 0:00:07]} Nf6 {[%emt 0:00:11]} 5. Nc3 {[%emt 0:00:02]} a6 {[%emt 0:00:10]} 6. h3 {[%emt 0:00:14]} e5 {[%emt 0:01:27]} 7. Nde2 {[%emt 0:00:39]} Nc6 {[%emt 0:01:05]} 8. g4 {[%emt 0:00:45]} h6 {[%emt 0:01:54]} 9. Bg2 {[%emt 0:01:27]} b5 {[%emt 0:01:06]} 10. Be3 {[%emt 0:01:05]} Be6 {[%emt 0:04:49]} 11. Ng3 {[%emt 0:04:04]} g6 {[%emt 0:02:51]} 12. Qd2 {[%emt 0:12:50]} Na5 {[%emt 0:03:01]} 13. b3 {[%emt 0:01:51]} Rc8 {[%emt 0:01:09]} 14. O-O {[%emt 0:03:21]} Nb7 {[%emt 0:05:33]} 15. Nd5 {[%emt 0:03:13]} Bxd5 {[%emt 0:04:15]} 16. exd5 {[%emt 0:00:02]} Qc7 {[%emt 0:01:27]} 17. Rac1 {[%emt 0:02:24]} Be7 {[%emt 0:02:19]} 18. Bxh6 {[%emt 0:06:41]} Nc5 {[%emt 0:03:27]} 19. Be3 {[%emt 0:05:08]} Qb7 {[%emt 0:09:39]} 20. c4 {[%emt 0:02:14]} b4 {[%emt 0:02:01]} 21. f4 {[%emt 0:04:31]} e4 {[%emt 0:00:51]} 22. Bd4 {[%emt 0:01:23]} Kd7 {[%emt 0:01:42]} 23. Rce1 {[%emt 0:09:27]} Rhe8 {[%emt 0:04:38]} 24. g5 {[%emt 0:01:55]} Nh5 {[%emt 0:00:44]} 25. Nxh5 {[%emt 0:02:09]} gxh5 {[%emt 0:00:37]} 26. h4 {[%emt 0:04:25]} 1-0